Cogmind - Beta 16 *** ADVENTURER MODE // 2025.12.24 @ 21:35:47 Player: Lukysa Result: Destroyed by RU-N14 with RU-N14's Throwing Claymores Performance ------------- Evolutions (3) 1500 Regions Visited (9) 1800 Robots Destroyed (96) 480 Value Destroyed (2184) 2184 Prototype IDs (41) 820 Alien Tech Used (0) 0 Bonus (651) 651 TOTAL SCORE: 7435 Bonus ------- Follower Combat Kills 80 Aligned with FarCom 300 Met Imprinter 300 Friendly Fire -29 Cogmind --------- Core Integrity 0/700 Matter 255/300 Energy 98/100 System Corruption 0% Temperature Cool (0) Movement Core (50) Location -6/Zion Parts ------- > --- POWER (2) -------- (None) > --- PROPULSION (4) --- (None) > --- UTILITY (5) ------ (None) > --- WEAPON (2) ------- (None) > --- INVENTORY (5) ---- Compact Ion Cannon Gauss Rifle Gauss Rifle Gauss Rifle Phasing Sabre Peak State ------------ > --- POWER ------------ Makeshift Power Source Light Fission Core > --- PROPULSION ------- Improved Flight Unit Improved VTOL Module Improved VTOL Module Improved VTOL Module > --- UTILITY ---------- Weight Redist. System 0b10 Decoder Chip [Scout] Shield Generator Hacking Suite Makeshift System Shield > --- WEAPON ----------- Phasing Sabre Phasing Sabre > --- INVENTORY -------- Compact Ion Cannon Gauss Rifle Gauss Rifle Gauss Rifle Advanced EMP Blaster [Rating: 54] Favorites ----------- Power Light Ion Engine Engine Light Ion Engine Power Core Light Nuclear Core Propulsion Flight Unit Leg Aluminum Leg Wheel Wheel Flight Unit Flight Unit Utility Weight Redist. System Device Weight Redist. System Storage Small Storage Unit Processor Advanced Targeting Computer Hackware Hacking Suite Protection Improved Propulsion Shielding Weapon Assault Rifle Energy Gun Heavy EM Shotgun Energy Cannon Compact Ion Cannon Ballistic Gun Assault Rifle Ballistic Cannon Flak Cannon Launcher Rocket Launcher Special Weapon RU-N14's Throwing Claymores Impact Weapon Great Maul Slashing Weapon Mining Claw Special Melee Weapon Datajack Build | -11 -10 -10 -10 -9 -8 -8 -7 -7 -6 ------- Run | Yrd Mat Min Exi Min Mat Sto Fac Low Zio Slots Evolved 6 | . . . . . 4 . 2 . . Power 1 | . . . . . . . 1 . . Propulsion 2 | . . . . . 2 . . . . Utility 3 | . . . . . 2 . 1 . . Weapon . | . . . . . . . . . . Parts Attached 98 | 3 27 4 . 14 9 21 11 3 6 Power 20 | . 5 3 . 2 1 3 4 . 2 Engine 17 | . 5 3 . 2 1 1 4 . 1 Core 3 | . . . . . . 2 . . 1 Reactor . | . . . . . . . . . . Propulsion 18 | . 8 . . 5 2 3 . . . Treads . | . . . . . . . . . . Leg 1 | . 1 . . . . . . . . Wheel 3 | . 2 . . 1 . . . . . Hover . | . . . . . . . . . . Flight 14 | . 5 . . 4 2 3 . . . Utility 23 | . 7 . . 3 . 7 4 1 1 Device 11 | . 4 . . 1 . 3 3 . . Storage 3 | . 2 . . 1 . . . . . Processor 4 | . 1 . . . . 1 1 . 1 Hackware 2 | . . . . . . 1 . 1 . Protection 3 | . . . . 1 . 2 . . . Artifact . | . . . . . . . . . . Weapon 37 | 3 7 1 . 4 6 8 3 2 3 Energy Gun 9 | 1 . . . . 5 2 1 . . Energy Cannon 1 | . . . . . . 1 . . . Ballistic Gun 13 | 2 5 . . 2 . 2 2 . . Ballistic Cannon 1 | . . . . . . 1 . . . Launcher 4 | . 1 . . 2 . 1 . . . Special Weapon 1 | . . . . . . . . . 1 Impact Weapon 4 | . . . . . 1 1 . 2 . Slashing Weapon 3 | . . 1 . . . . . . 2 Piercing Weapon . | . . . . . . . . . . Special Melee Weapon 1 | . 1 . . . . . . . . Unidentified Prototypes 11 | . . . . . 4 5 1 . 1 Parts Lost 12 | . 1 1 . 1 1 . 2 . 6 Power 2 | . . . . . . . . . 2 Propulsion 4 | . 1 1 . . . . . . 2 Utility 4 | . . . . 1 . . 1 . 2 Weapon 2 | . . . . . 1 . 1 . . Highest Loss Streak 4 | . 1 1 . 1 1 . 1 . 4 To Critical Strikes . | . . . . . . . . . . Average Backups 4 | 3 4 4 5 6 4 4 4 5 5 Power . | . . . . . . . . . . Propulsion . | 1 1 1 1 1 . . . . . Utility . | . . . 1 . . 1 . . . Weapon 3 | . 2 2 2 2 3 3 4 5 5 Tool/Special . | . . . . . . . . . . Unused Backups 8 | . 3 . 1 1 1 . 1 . 1 Power 1 | . 1 . . . . . . . . Propulsion 2 | . 1 . . 1 . . . . . Utility 4 | . 1 . 1 . 1 . 1 . . Weapon 1 | . . . . . . . . . 1 Tool/Special . | . . . . . . . . . . Average Slot Usage (%) 91 | . 87 99 100 95 72 93 92 96 86 Engine 10 | . 13 14 14 13 9 . 12 15 7 Core 1 | . . . . . . 8 . . 4 Flight 28 | . 21 27 28 27 34 36 30 30 26 Device 14 | . 8 14 14 14 8 19 19 15 12 Storage 1 | . 2 . . 7 . . . . . Processor 5 | . 8 14 14 . . 1 5 7 6 Hackware 3 | . . . . . . 1 7 11 12 Protection 2 | . . . . 2 5 8 2 . . Energy Gun 1 | . 2 . . . 9 3 . . . Ballistic Gun 8 | . 22 15 14 14 2 1 1 . . Launcher 1 | . 2 . . 8 1 . . . . Impact Weapon 4 | . . . . . 3 10 10 15 6 Slashing Weapon 3 | . . 12 14 4 . . . . 6 Peak Build Rating 54 | 2 9 9 10 18 29 37 43 44 54 Average Rating 24 | 1 6 8 9 11 24 33 37 41 43 On Entrance 18 | . 2 9 9 10 9 25 35 37 44 Avg Prop Armor Cover (%) 2 | . . . . 3 3 . 1 . . Naked Turns 58 | . . . . . . . . . 58 Heaviest Build 30 | 3 19 9 7 16 16 18 30 22 25 Greatest Support 26 | 3 20 14 14 14 17 26 26 26 26 Greatest Overweight (x) 4 | . 4 . . 1 . . 1 . . Average Overweight (x) . | . . . . . . . . . . Largest Inventory Capacity 10 | 5 10 5 5 8 5 5 5 5 5 Average Capacity 5 | 5 5 5 5 6 5 5 5 5 5 Most Carried 8 | 5 5 5 5 8 5 5 5 5 5 Average Carried 4 | 3 4 4 4 6 4 4 4 5 4 Final Capacity 5 | 5 5 5 5 5 5 5 5 5 5 Final Carried 5 | 5 5 5 5 5 5 5 5 5 5 Class Distribution -------------------- 34% | Mutant 32% | Hacker-Sprinter 15% | Scavenger-Sprinter 13% | Scavenger-Mutant 3% | Hacker-Mutant Dominant Class ---------------- Mutant | -10/Materials Mutant | -10/Mines Mutant | -10/Exiles Scavenger-Mutant | -9/Mines Scavenger-Sprinter | -8/Materials Scavenger-Sprinter | -8/Storage Hacker-Sprinter | -7/Factory Hacker-Sprinter | -7/Lower Caves Hacker-Sprinter | -6/Zion Resources | -11 -10 -10 -10 -9 -8 -8 -7 -7 -6 ----------- Run | Yrd Mat Min Exi Min Mat Sto Fac Low Zio Matter Collected 2376 | 223 572 123 6 498 159 484 241 . 70 Remotely . | . . . . . . . . . . Salvage Created 3565 | 56 734 253 . 397 227 1086 752 . 60 Parts 149 | 1 36 19 . 24 5 44 15 . 5 Haulers Intercepted 7 | . 1 . . . 2 4 . . . Recyclers Shooed 6 | . 3 1 . . . 1 1 . . Parts Field Recycled . | . . . . . . . . . . Retrieved Matter . | . . . . . . . . . . Parts Self-Destructed . | . . . . . . . . . . Prevented . | . . . . . . . . . . Parts Restored . | . . . . . . . . . . Kills | -11 -10 -10 -10 -9 -8 -8 -7 -7 -6 ------- Run | Yrd Mat Min Exi Min Mat Sto Fac Low Zio Combat Hostiles Destroyed 60 | . 15 4 . 18 3 13 7 . . Melee 9 | . . 4 . 1 . 2 2 . . Guns 17 | . 9 . . 3 1 4 . . . Cannons 1 | . . . . . . 1 . . . AOE 25 | . 6 . . 14 2 2 1 . . Classes Destroyed 15 | 1 5 2 . 1 . 3 2 . 1 Worker 11 | . 2 3 . 1 . 3 2 . . Builder 6 | . . . . . . 3 3 . . Tunneler 4 | . . 1 . 1 . . 2 . . Hauler 7 | . 1 . . . 2 4 . . . Recycler 11 | 1 3 1 . 1 . 1 4 . . Operator 3 | . . . . . . 1 2 . . Watcher 4 | . 2 . . . 1 1 . . . Swarmer 7 | . 6 . . . 1 . . . . Grunt 33 | . 9 2 . 7 2 10 3 . . Duelist 1 | . . . . 1 . . . . . Sentry 4 | . . . . . . 3 1 . . Hunter 2 | . . . . . . . 2 . . Programmer 1 | . . . . . . . 1 . . Zionite 2 | . . . . . . . . . 2 Assembled 12 | . . 2 . 10 . . . . . Best Kill Streak 10 | 1 6 7 . 10 3 9 7 . 2 Combat Bots Only 8 | . 5 2 . 8 2 3 2 . . Max Kills in Single Turn 4 | 1 3 1 . 4 2 3 1 . 2 Gunslinging 1 | . 1 . . . . . . . . Exploded 4 | . 3 . . 4 1 2 1 . . Melee 1 | . . 1 . 1 . 1 1 . . Uniques/NPCs Destroyed . | . . . . . . . . . . Combat | -11 -10 -10 -10 -9 -8 -8 -7 -7 -6 -------- Run | Yrd Mat Min Exi Min Mat Sto Fac Low Zio Hostile Shots Fired 364 | . 36 5 . 31 30 25 89 . 148 Missed 161 | . 11 3 . 12 14 13 41 . 67 Hits 203 | . 25 2 . 19 16 12 48 . 81 Melee 12 | . . 1 . 6 . . . . 5 Projectile 191 | . 25 1 . 13 16 12 48 . 76 AOE 2 | . . . . . . . 1 . 1 Critical Strikes 5 | . . . . . 1 1 1 . 2 Part Disruptions 2 | . . . . . . . . . 2 Damage Taken 2166 | . 236 33 . 315 137 166 435 . 844 Core 960 | . 77 . . 75 40 63 156 . 549 Absorbed by Shields 139 | . . . . . . . 94 . 45 Redirected to Shielding 25 | . . . . . . 25 . . . Ignored by Resistances 690 | . 74 9 . 89 42 47 156 . 273 Regen/Repaired (Parts) 65 | . 8 . . . . 57 . . . Core Remaining (%) 73 | 100 . . . 39 . 81 . . . Volleys Fired 120 | 2 56 . . 27 4 20 10 . 1 Largest 2 | 2 2 . . 2 2 2 2 . 1 Hottest 126 | 40 70 . . 66 100 126 61 . 36 Shots Fired 223 | 4 112 . . 47 6 35 18 . 1 Gun 191 | 4 108 . . 32 3 28 16 . . Cannon 6 | . . . . . . 6 . . . Launcher 26 | . 4 . . 15 3 1 2 . 1 Special . | . . . . . . . . . . Kinetic 181 | 4 106 . . 32 . 23 16 . . Thermal 8 | . 2 . . . . 6 . . . Explosive 24 | . 4 . . 15 3 . 2 . . Electromagnetic 10 | . . . . . 3 6 . . 1 Robot Hit Streak 25 | 3 25 . . 10 3 9 5 . 1 Robot Miss Streak 6 | . 4 . . 3 6 1 2 . . Penetration Max . | . . . . . . . . . . Secondary Targets 2 | . 2 . . . . . . . . Max Gunslinging Chain 1 | . 1 . . . . . . . . Shots Hit Robots 229 | 3 81 11 . 32 5 47 45 . 5 Core Hits 112 | 1 40 8 . 28 6 17 8 . 4 Critical Kills 1 | . . . . . . . 1 . . Critical Parts Destroyed 12 | . . . . . 1 4 7 . . Critical Strikes 13 | . . . . . 1 4 8 . . Smash 13 | . . . . . 1 4 8 . . Melee Attacks 133 | . 2 38 . 7 3 28 39 . 16 Impact 70 | . . . . . 3 28 39 . . Slashing 61 | . . 38 . 7 . . . . 16 Piercing . | . . . . . . . . . . Sneak Attacks 35 | . 2 5 . 3 2 11 12 . . Combat Hostiles 4 | . . . . . . 2 2 . . Follow-up Attacks 2 | . . . . . . 1 1 . . Damage Inflicted 8814 | 41 1200 410 . 1346 533 2211 2612 . 461 Guns 1669 | 41 888 . . 199 24 336 181 . . Cannons 135 | . . . . . . 135 . . . Explosions 2047 | . 312 . . 905 309 134 95 . 292 Melee 4963 | . . 410 . 242 200 1606 2336 . 169 Ramming . | . . . . . . . . . . Kinetic 1536 | 41 867 . . 199 . 248 181 . . Thermal 282 | . 21 . . . . 135 . . 126 Explosive 1621 | . 312 . . 905 309 . 95 . . Electromagnetic 412 | . . . . . 24 222 . . 166 Impact 4142 | . . . . . 200 1606 2336 . . Slashing 821 | . . 410 . 242 . . . . 169 Piercing . | . . . . . . . . . . Highest Corruption 5 | . 1 1 1 1 5 5 . . . Average Corruption 2 | . 1 1 1 1 5 5 . . . Corruption Purged . | . . . . . . . . . . Corruption Blocked . | . . . . . . . . . . Effects 21 | . 1 1 4 3 2 10 . . . Message Errors 8 | . . . 2 1 1 4 . . . Matter Fused 4 | . . . 2 . . 2 . . . Energy Discharges 3 | . 1 . . 1 . 1 . . . Parts Rejected 1 | . . . . . . 1 . . . Data Loss (minor) 4 | . . . . 1 1 2 . . . Data Loss (major) 1 | . . 1 . . . . . . . Overload Shots . | . . . . . . . . . . Overflow Damage 1982 | . . 42 . 53 80 744 1049 . 14 Projectiles . | . . . . . . . . . . Explosions 40 | . . . . 26 . . . . 14 Melee 1942 | . . 42 . 27 80 744 1049 . . Knockbacks 15 | . . . . . . 1 14 . . Impact 15 | . . . . . . 1 14 . . Kinetic . | . . . . . . . . . . Secondary . | . . . . . . . . . . Self-Inflicted Damage 117 | . . . . 59 . 8 31 . 19 Shots 7 | . . . . 4 . 1 1 . 1 Rammed . | . . . . . . . . . . Targets Rammed . | . . . . . . . . . . Kicked . | . . . . . . . . . . Crushed . | . . . . . . . . . . Highest Temperature 260 | . 18 . . 18 44 122 6 . 260 Average Temperature 67 | . 5 . . 8 15 48 4 . 139 Received Heat Transfer 586 | . 147 . . 50 63 117 84 . 125 Effects 3 | . . . . . . . . . 3 Interference 3 | . . . . . . . . . 3 Siege Activations . | . . . . . . . . . . Martial Activations . | . . . . . . . . . . Shielding Activations . | . . . . . . . . . . Robots Disrupted . | . . . . . . . . . . Combat Hostiles . | . . . . . . . . . . Robots Corrupted 24 | . . . . . 3 9 12 . . Combat Hostiles 8 | . . . . . . 4 4 . . Parts Fried 33 | . . . . . 2 19 12 . . Impact Corruptions 62 | . . . . . 5 21 36 . . Robots Melted . | . . . . . . . . . . Combat Hostiles . | . . . . . . . . . . Parts Melted . | . . . . . . . . . . Heat Transferred 335 | . 50 . . . . 185 . . 100 Parts Sabotaged . | . . . . . . . . . . Parts Stolen . | . . . . . . . . . . Parts Stripped . | . . . . . . . . . . Power Chain Reactions 1 | . . . . . . . . . 1 Alert | -11 -10 -10 -10 -9 -8 -8 -7 -7 -6 ------- Run | Yrd Mat Min Exi Min Mat Sto Fac Low Zio Maximum Alert Level 1 | . . . . 1 . 1 1 . . Low Security (%) 88 | 100 100 100 . 82 100 64 95 . . Level 1 11 | . . . . 17 . 35 4 . . Level 2 . | . . . . . . . . . . Level 3 . | . . . . . . . . . . Level 4 . | . . . . . . . . . . Level 5 . | . . . . . . . . . . High Security . | . . . . . . . . . . Max Security . | . . . . . . . . . . Peak Influence 353 | 5 149 45 . 228 138 353 206 . . Initial 134 | . . 39 . . 24 45 134 . . Average 117 | 1 67 17 . 128 57 180 166 . . Influence Increases 1996 | 5 492 65 . 303 244 530 357 . . Destroy 0b10 Robot/C 1040 | . 300 40 . 160 140 260 140 . . Destroy 0b10 Robot/NC 230 | 5 40 25 . 15 15 65 65 . . Destroy Leader 232 | . 56 . . 30 36 70 40 . . Allied During Kill 7 | . . . . . 7 . . . . Trap Triggered on 0b10 20 | . . . . . 10 10 . . . Successful Hack 49 | . 3 . . . . 46 . . . Disable Machine 45 | . 9 . . . . 18 18 . . Destroy Structure 148 | . 24 . . 98 21 1 4 . . Partial Spotted 60 | . . . . . . 15 45 . . Lose Combat Pursuer 165 | . 60 . . . 15 45 45 . . Influence Decreases 1996 | 5 373 149 35 230 189 313 521 102 79 Entered New Map 619 | . . 80 35 . 49 83 211 82 79 Time Decay 1144 | 5 250 59 . 220 70 230 290 20 . Lost Part 60 | . 10 10 . 10 10 . 20 . . Lost Ally 60 | . . . . . 60 . . . . Purge Threat 113 | . 113 . . . . . . . . Squads Dispatched 16 | . 2 . . 1 1 5 7 . . Investigation 9 | . 2 . . . 1 4 2 . . Extermination 1 | . . . . . . . 1 . . Reinforcement 3 | . . . . 1 . 1 1 . . Assault . | . . . . . . . . . . Garrison 3 | . . . . . . . 3 . . Intercept . | . . . . . . . . . . Searches Triggered . | . . . . . . . . . . Construction Impeded 1 | . . . . 1 . . . . . Haulers Reinforced . | . . . . . . . . . . Active Scanning Responses . | . . . . . . . . . . Cargo Convoy Interrupts . | . . . . . . . . . . Stealth | -11 -10 -10 -10 -9 -8 -8 -7 -7 -6 --------- Run | Yrd Mat Min Exi Min Mat Sto Fac Low Zio Distress Signals 7 | . 3 . . . 2 2 . . . Communications Jammed . | . . . . . . . . . . Distress Signals . | . . . . . . . . . . Times Spotted 153 | . 23 4 . 17 19 24 16 . 50 Peak Tracking Total 24 | . 7 2 . 6 10 5 3 . 24 Tactical Retreats 14 | . 2 1 . . 1 2 2 . 6 Traps | -11 -10 -10 -10 -9 -8 -8 -7 -7 -6 ------- Run | Yrd Mat Min Exi Min Mat Sto Fac Low Zio Traps Triggered 1 | . 1 . . . . . . . . Indirectly . | . . . . . . . . . . Trap Hack Attempts . | . . . . . . . . . . Triggered . | . . . . . . . . . . Disarmed . | . . . . . . . . . . Reprogrammed 6 | . . . . . 6 . . . . Reused 2 | . . . . . 1 1 . . . Traps Reconfigurated 12 | . . . . . 5 7 . . . Traps Extracted . | . . . . . . . . . . Installed . | . . . . . . . . . . Triggered 2 | . . . . . 1 1 . . . Machines | -11 -10 -10 -10 -9 -8 -8 -7 -7 -6 ---------- Run | Yrd Mat Min Exi Min Mat Sto Fac Low Zio Machines Disabled 6 | . 1 . . . . 2 2 . 1 Max in Single Turn 1 | . 1 . . . . 1 1 . 1 Machines Repaired . | . . . . . . . . . . Machines Dismantled . | . . . . . . . . . . Machines Sabotaged . | . . . . . . . . . . Overloaded Fab Kills . | . . . . . . . . . . Hacking | -11 -10 -10 -10 -9 -8 -8 -7 -7 -6 --------- Run | Yrd Mat Min Exi Min Mat Sto Fac Low Zio Machines Accessed 29 | . 10 . 2 . 2 12 2 1 . Terminals 20 | . 7 . . . 2 10 1 . . Fabricators 1 | . . . . . . . 1 . . Repair Stations 2 | . 1 . . . . 1 . . . Recycling Units 3 | . 2 . . . . 1 . . . Scanalyzers . | . . . . . . . . . . Garrison Access . | . . . . . . . . . . Total Hacks 83 | . 32 . 6 . 4 32 8 1 . Successful 54 | . 21 . 6 . 3 18 5 1 . Failed 29 | . 11 . . . 1 14 3 . . Catastrophic 3 | . 2 . . . . 1 . . . Database Lockouts . | . . . . . . . . . . Manual 10 | . . . 1 . . 4 . . 5 Terminals 59 | . 22 . . . 4 27 6 . . Fabricators 2 | . . . . . . . 2 . . Repair Stations 5 | . 2 . . . . 3 . . . Recycling Units 10 | . 8 . . . . 2 . . . Scanalyzers . | . . . . . . . . . . Garrison Access . | . . . . . . . . . . Terminal Hacks 42 | . 15 . 6 . 3 14 3 1 . Record 8 | . . . 5 . . 1 2 . . Part Schematic 2 | . . . . . . 2 . . . Robot Schematic 2 | . . . . . . 2 . . . Robot Analysis 1 | . 1 . . . . . . . . Prototype ID Bank 5 | . 3 . . . . 2 . . . Open Door 5 | . . . . . . 4 . 1 . Terminal Index 1 | . 1 . . . . . . . . Alert Level 3 | . 3 . . . . . . . . Unreport Threat 1 | . 1 . . . . . . . . Locate Traps 4 | . 2 . . . . 1 1 . . Reprogram Traps 1 | . . . . . 1 . . . . Maintenance Status 1 | . 1 . . . . . . . . Hauler Manifests 1 | . 1 . . . . . . . . Registered Components 2 | . 1 . . . 1 . . . . Registered Prototypes 1 | . . . . . . 1 . . . Zone Layout 3 | . 1 . . . 1 1 . . . Proto ID Catalog 1 | . . . 1 . . . . . . Fabricator Hacks 2 | . . . . . . . 2 . . Load Schematic 1 | . . . . . . . 1 . . Build 1 | . . . . . . . 1 . . Repair Station Hacks 4 | . 2 . . . . 2 . . . Scan Component 2 | . 1 . . . . 1 . . . Repair 2 | . 1 . . . . 1 . . . Recycling Unit Hacks 6 | . 4 . . . . 2 . . . Report Inventory 3 | . 2 . . . . 1 . . . Retrieve Components 3 | . 2 . . . . 1 . . . Scanalyzer . | . . . . . . . . . . Garrison Access Hacks . | . . . . . . . . . . Unauthorized Hacks . | . . . . . . . . . . Terminals . | . . . . . . . . . . Fabricators . | . . . . . . . . . . Repair Stations . | . . . . . . . . . . Recycling Units . | . . . . . . . . . . Scanalyzers . | . . . . . . . . . . Garrison Access . | . . . . . . . . . . Data Cores Recovered 1 | . . . . . . . 1 . . Used . | . . . . . . . . . . Hacking Detections 15 | . 4 . . . 2 7 2 . . Full Trace Events 8 | . 2 . . . . 4 2 . . Feedback Events 1 | . 1 . . . . . . . . Corruption 1 | . 1 . . . . . . . . Feedback Blocked . | . . . . . . . . . . Robot Schematics Acquired 2 | . . . . . . 2 . . . Robots Built . | . . . . . . . . . . Authchips . | . . . . . . . . . . Time . | . . . . . . . . . . Total Robot Build Rating . | . . . . . . . . . . Part Schematics Acquired 2 | . . . . . . 2 . . . Parts Built 2 | . . . . . . . 2 . . Authchips . | . . . . . . . . . . Time 84 | . . . . . . . 84 . . Total Part Build Rating 8 | . . . . . . . 8 . . Part Studies Acquired . | . . . . . . . . . . Parts Repaired 2 | . 1 . . . . 1 . . . Time 64 | . 26 . . . . 38 . . . Parts Recycled . | . . . . . . . . . . Recycled Matter . | . . . . . . . . . . Retrieved Matter . | . . . . . . . . . . Retrieved Components 7 | . 5 . . . . 2 . . . Parts Scanalyzed . | . . . . . . . . . . Part Schematics Acquired . | . . . . . . . . . . Parts Damaged . | . . . . . . . . . . Bothacking | -11 -10 -10 -10 -9 -8 -8 -7 -7 -6 ------------ Run | Yrd Mat Min Exi Min Mat Sto Fac Low Zio Used RIF Installer . | . . . . . . . . . . Robots Hacked 1 | . 1 . . . . . . . . Non-combat 1 | . 1 . . . . . . . . Combat . | . . . . . . . . . . Robot Hacks Applied 1 | . 1 . . . . . . . . parse_system 1 | . 1 . . . . . . . . Relay Couplers Released . | . . . . . . . . . . Fabnet Peak Effective % . | . . . . . . . . . . Robots Rewired . | . . . . . . . . . . Allies Hacked . | . . . . . . . . . . Hacks Repelled . | . . . . . . . . . . Allies | -11 -10 -10 -10 -9 -8 -8 -7 -7 -6 -------- Run | Yrd Mat Min Exi Min Mat Sto Fac Low Zio Total Allies 3 | . . . . 3 . . . . . Largest Group 3 | . . . . 3 3 . . . . Highest-Rated Group 81 | . . . . 81 81 . . . . Highest-Rated Ally 31 | . . . . 31 31 . . . . Total Orders . | . . . . . . . . . . Ally Attacks 34 | . . . . 5 29 . . . . Total Damage 445 | . . . . 42 403 . . . . Kills 5 | . . . . 1 4 . . . . Allies Corrupted . | . . . . . . . . . . Allies Melted . | . . . . . . . . . . Intel | -11 -10 -10 -10 -9 -8 -8 -7 -7 -6 ------- Run | Yrd Mat Min Exi Min Mat Sto Fac Low Zio Active Infowar (turns) 917 | . 373 196 208 8 . . 7 . 125 Optics 757 | . 345 196 208 8 . . . . . Sensors 108 | . 101 . . . . . 7 . . Decoding 125 | . . . . . . . . . 125 ECM 144 | . 144 . . . . . . . . Robot Analysis Total 1 | . 1 . . . . . . . . Derelict Logs Recovered 5 | . . 1 . 2 . . . . 2 Drone Launches . | . . . . . . . . . . Drone Recoveries . | . . . . . . . . . . Exploration | -11 -10 -10 -10 -9 -8 -8 -7 -7 -6 ------------- Run | Yrd Mat Min Exi Min Mat Sto Fac Low Zio Turns Passed 3345 | 43 587 196 208 506 140 467 584 41 573 Spaces Moved 5274 | 56 699 195 558 730 178 573 571 125 1589 Core 233 | 56 60 . . . . . . . 117 Treads . | . . . . . . . . . . Legs 3 | . 3 . . . . . . . . Wheels 82 | . 77 . . 5 . . . . . Hover . | . . . . . . . . . . Flight 4956 | . 559 195 558 725 178 573 571 125 1472 Fastest Speed 27 | 50 37 37 37 37 29 27 27 27 27 Average Speed 33 | 50 45 37 37 37 30 28 27 27 28 Slowest Speed 365 | 50 365 37 37 117 34 29 97 27 50 Overloaded Moves . | . . . . . . . . . . Propulsion Burnouts . | . . . . . . . . . . Robots Hopped 9 | . 2 1 . 1 2 2 . . 1 Potential Cave-ins . | . . . . . . . . . . Cave-ins Triggered . | . . . . . . . . . . Exploration Rate (%) 49 | 3 82 33 91 92 19 60 11 16 87 Regions Visited 9 Branch Regions 6 Pre-discovered Areas 4 | . . 1 1 . . 1 . . 1 Known Exits Taken 2 | . . . . . 1 1 . . . Unknown Exits Taken 7 | 1 1 1 1 1 . . 1 1 . Scrap Searched 8 | . . 1 . 3 . . . . 4 Spaces Dug . | . . . . . . . . . . Terrain Destroyed 197 | . 30 . . 133 27 1 4 . 2 Melee . | . . . . . . . . . . Projectile 2 | . . . . . . 1 1 . . AOE 195 | . 30 . . 133 27 . 3 . 2 Terrain Rammed . | . . . . . . . . . . Walls Destroyed . | . . . . . . . . . . Machines Disabled . | . . . . . . . . . . Actions | -11 -10 -10 -10 -9 -8 -8 -7 -7 -6 --------- Run | Yrd Mat Min Exi Min Mat Sto Fac Low Zio Total 6383 | 65 861 241 559 897 247 794 904 131 1684 Wait 589 | . 32 . . 90 31 113 260 2 61 Move 5247 | 55 694 192 557 727 173 568 570 124 1587 Hop 9 | . 2 1 . 1 2 2 . . 1 Pick Up 43 | 5 13 1 1 6 5 7 3 . 2 Fast Attach 71 | 2 17 4 . 6 6 19 7 3 7 Attach 18 | . 4 1 . 2 4 2 3 . 2 Detach 7 | . . . . 1 2 2 1 . 1 Swap 59 | 1 15 . . 16 8 12 6 . 1 Drop 97 | . 26 4 1 14 9 24 8 2 9 Fire 120 | 2 56 . . 27 4 20 10 . 1 Melee 123 | . 2 38 . 7 3 25 36 . 12 Ram . | . . . . . . . . . . Kick . | . . . . . . . . . . Crush . | . . . . . . . . . . Escape Stasis . | . . . . . . . . . . Rewire . | . . . . . . . . . . Trap . | . . . . . . . . . . Miscellaneous . | . . . . . . . . . . Route ------- -11/Scrapyard -10/Materials (discovered 4 exits: [*Mat x2] / [*Min x2]) -10/Mines -10/Exiles (discovered 2 exits: [*Min x2]) -9/Mines (discovered 2 exits: *Mat x2) -8/Materials (discovered 2 exits: *Sto x2) -8/Storage -7/Factory -7/Lower Caves -6/Zion (discovered 2 exits: Dee / [*Pro]) History --------- Turn | Location | Event 8 | -11/Scrapyard | Discovered new exit (range 15) 44 | -11/Scrapyard | Entered Materials 200 | -10/Materials | Discovered new exit (range 12) 268 | -10/Materials | Discovered new exit (range 3) 355 | -10/Materials | Build established: Mutant 385 | -10/Materials | Discovered new exit (range 18) 452 | -10/Materials | Discovered new exit (range 14) 495 | -10/Materials | Repaired Flight Unit 631 | -10/Materials | Entered Mines 639 | -10/Mines | Learned location of Storage (-8) 651 | -10/Mines | Excavation squad dispatched 651 | -10/Mines | A large section of the Mines collapsed 722 | -10/Mines | Deemed a non-threat by the Exiles lab entrance 726 | -10/Mines | Discovered new exit (range 5) 827 | -10/Mines | Entered Exiles 832 | -10/Exiles | Discovered new exit (range 16) 836 | -10/Exiles | Met 8R-AWN 843 | -10/Exiles | Met EX-HEX 854 | -10/Exiles | Met EX-BIN 859 | -10/Exiles | Aligned with FarCom system 860 | -10/Exiles | Given EX-Vault access code 882 | -10/Exiles | Opened EX-Vault 885 | -10/Exiles | Found Trap Reconfigurator 893 | -10/Exiles | Warned to stay clear of 0b10 Research branches 903 | -10/Exiles | Met EX-DEC 907 | -10/Exiles | Learned location of Zion (-6) 941 | -10/Exiles | Discovered new exit (range 15) 974 | -10/Exiles | Visited The Gauntlet 1035 | -10/Exiles | Left Exiles lab with Trap Reconfigurator 1035 | -10/Exiles | Entered Mines 1042 | -9/Mines | Received a Rocket Launcher from a helpful Derelict 1051 | -9/Mines | Learned Materials trap positions 1077 | -9/Mines | Assembled infested the area 1145 | -9/Mines | Core integrity fell below 50% 1174 | -9/Mines | Discovered new exit (range 14) 1273 | -9/Mines | Destroyed 8 combat bots 1310 | -9/Mines | Escorted by a lone wolf Derelict 1475 | -9/Mines | Discovered new exit (range 14) 1541 | -9/Mines | Entered Materials 1541 | -8/Materials | Accompanied by 3 allies 1541 | -8/Materials | Evolved 4 slots: Propulsion x2, Utility x2 1542 | -8/Materials | Identified exit to Storage 1543 | -8/Materials | Loaded intel: 28 trap records 1546 | -8/Materials | Led the pair of lost Derelicts to an unsafe place 1624 | -8/Materials | Discovered exit to Storage (range 16) 1681 | -8/Materials | Entered Storage 1733 | -8/Storage | Learned location of Armory (-3) 1848 | -8/Storage | Build established: Scavenger-Sprinter 1933 | -8/Storage | Met 01-MTF 2031 | -8/Storage | Repaired Great Maul 2091 | -8/Storage | Discovered new exit (range 16) 2144 | -8/Storage | Identified exit to Factory 2148 | -8/Storage | Entered Factory 2148 | -7/Factory | Accompanied by 2 allies (01-MTF) 2148 | -7/Factory | Evolved 2 slots: Power x1, Utility x1 2151 | -7/Factory | 01-MTF left 2259 | -7/Factory | Fabricated Gauss Rifle (x2) 2382 | -7/Factory | Discovered new exit (range 16) 2732 | -7/Factory | Entered Lower Caves 2766 | -7/Lower Caves | Build established: Hacker-Sprinter 2766 | -7/Lower Caves | Encountered a Warlord checkpoint 2771 | -7/Lower Caves | A Derelict revealed a hidden shortcut to a safe place 2773 | -7/Lower Caves | Entered Zion 2792 | -6/Zion | Learned Factory emergency access door positions 2831 | -6/Zion | Found Prototype Special Weapon 2832 | -6/Zion | Identified RU-N14's Throwing Claymores 2847 | -6/Zion | Discovered new exit (range 16) 2908 | -6/Zion | Learned location of Warlord (-5) 2959 | -6/Zion | Identified exit to Deep Caves 2966 | -6/Zion | Received a hallucinogenic algorithm 2966 | -6/Zion | Ran a hallucination algorithm 2966 | -6/Zion | Ran a hallucination algorithm 2967 | -6/Zion | Ran a hallucination algorithm 3207 | -6/Zion | Rebuked by Imprinter 3215 | -6/Zion | Attempted to imprint without authorization 3215 | -6/Zion | Attacked by Zionites 3276 | -6/Zion | Lost 4 parts (1p1n2u) 3288 | -6/Zion | Released all parts (6) 3295 | -6/Zion | Core integrity fell below 50% 3319 | -6/Zion | Core integrity fell below 20% 3333 | -6/Zion | Spotted AR-ZUV(B) 3335 | -6/Zion | Spotted EU-VCX(B) 3346 | -6/Zion | Destroyed by RU-N14 with RU-N14's Throwing Claymores Last Messages --------------- Twisted Machinery. 03315_ 02-2Y3(z) pulls a Mak. Spear out of the Twisted Machinery. 03316_ U6-P0J(z) pulls a Mak. Axe out of the Twisted Machinery. NL-AEW(z) bursts out of the Twisted Machinery. 03325_ E2-M77(z) pulls a Mak. Spear out of the Twisted Machinery. 03326_ 82-5GQ(z) pulls a Mak. Shrapnel Gun out of the Twisted Machinery. 03327_ YL-TI1(z) pulls a Mak. Sword out of the Twisted Machinery. 03328_ VK-J1A(z) pulls a Mak. Spear out of the Twisted Machinery. 03336_ F0-0QT(z) pulls a Mak. Spear out of the Twisted Machinery. 03339_ System Quarantine Field Array disabled. RU-N14: "Time for a live test!" RU-N14 pulls out a set of special claymores. Map ----- +----------------------------------------------------+ | #??????????????????????????????????????????# < | | #??????????????????????????????????????????# | | #??????????????????????????????????????????## | | ###?????????????????????????????????????????# | | #"#?????????????????????????????????????????# | | "##?????????????????????????????????????????## # | | ""##?????????????????????????????????????????# ## | | """#?????????????????????????????????????????#|!#? | | ""#?????????????????????????????????????????#!%#? | | ""###???????????????????????????????????????# [#? | | """"#???????????????????????????????????????# #? | | "###?????????????????????????? #??????????# #? | | ""#??????????????????????????? #??????????# #? | | "##?????????????????????????? ##?????????# #? | | "##?????????????????????????? #?###"""#?# #? | | """#?????????????????????????? ###"" ||#?#[ #? | | """#?????????????????????????# ??#"" ||#?#*%#? | | """######??????????????????## ???#"" """#?# !#? | | ""### "############???##### #???###" ###?# #? | | "###" """""""""#???# #??## ### #?# #? | | ""##" """""""""#????# #?## #?# #? | | ""# ###### c #?## ### #? | | ### ## #? | | #? | | "# ### #? | | "##" """"""""""#?# @ ## | | ""## """""""""""#?## | | "### "############??## ## ### | | ""######??????????????## ### #?## | | ""#????????????????????### #?##### #???## | | ""##??????????????????????# ##???# #????? | | ""#???????????????????##### ##### #????? | | ""#???????????????????# ## #????? | | """#??????????????????# #### # #???? | | """##??????????????????## #??# # #??? | | "#"#????????????????????## #??## # ## #?? | | ####?????????????????????## ##???###### #? #?? | | ??????????????????????????####?????????# #?####?? | | ???????????????????????????????????????# #??????? | | ??????????????????????????????????????## ##?????? | | "?????????????????????????????????????# #?????? | | " ????????????????????????????????????# #?????? | | "???????????????????????????????????## ##?????? | | "??????????????????????????????????## #?????? | | "#?????????????????????????????????# ##?????? | | ""?????????????????????????????????## #?????? | | " "#?????????????????????????????????# #?????? | | """"?????????????????????????????????# ##?????? | | ?????????????????????????????????????## ##??????? | | ??????????????????????????????????????####???????? | +----------------------------------------------------+ Best States ------------- Heat Dissipation 45 Energy Generation 28 Energy Capacity 455 Matter Stores 300 Matter Capacity 300 Sight Range 18 Robot Scan Range 14 Terrain Scan Density 10 ECM Strength 1 Additional Mass Support 6 Armor Coverage 150 Resistance: KI 20 Resistance: TH 20 Resistance: EX 20 Resistance: EM 20 Resistance: I 20 Resistance: S 20 Resistance: P 20 Propulsion Shielding 66 Evasion (%) 64 Targeting Accuracy 8 Recoil Reduction 4 Kinecelleration 30 Offensive Hacking 20 Defensive Hacking 11 Item Schematics ----------------- Gauss Rifle | -8/Storage | Hacked Weapon Cycler | -8/Storage | Hacked Robot Schematics ------------------ B-36 Bruiser | -8/Storage | Hacked M-28 Smith | -8/Storage | Hacked Fabricated ------------ Gauss Rifle | x2 | -7/Factory Repaired ---------- Flight Unit | 60% | -10/Materials Great Maul | 56% | -8/Storage Studied --------- None Alien Tech Used ----------------- None Achievements -------------- Hammer Time Challenges ------------ None Game ------ Seed TargetIonicWartreads Manual? 0 Play Time 01:45:51 Cumulative 83.0 hours Start 2025.12.24 @ 19:40:22 End 2025.12.24 @ 21:35:47 Sessions 1 Manual Loads 0 Difficulty Adventurer Special Mode None Game No. 45 Rogue 29 Adventurer 16 Explorer 0 Win Type - Total 0 Types 0/0/0/0/0/0/0/0/0/0 Lore% 23 Gallery% 40 Achievement% 27 Wizard Run 0 Options --------- Layout 1 ASCII 0 Keyboard 0 Movement Mouse Keybinds 0 Fullscreen 2 Font 32/SmallcapsGlow Map View 50x35 Zoom Use 0% Tactical HUD 1 Map Filters NONE Filters NONE Steam 1 RUN: 7369cd12-262a-430f-af11-a223ece86256